fUSD/lending_fUSD_20260626
["ID","MTS","AMOUNT","RATE_DAILY","PERIOD"]
[426469858,1782426643000,-571.783607,0.00027397,2]
[426469845,1782426643000,-195.33695911,0.00027397,2]
[426469894,1782426643000,-151.0,0.00027397,2]
[426469899,1782426643000,-288.517697,0.00027397,2]
[426469897,1782426643000,-151.0,0.00027397,2]
[426469936,1782426643000,-1759.026555,0.0002755,2]
[426469928,1782426643000,-151.49213422,0.00027417,14]
[426469931,1782426643000,-1500.0,0.00027443,2]
[426469937,1782426643000,-2000.0,0.0002755,2]
[426469934,1782426643000,-500.0,0.000275,7]
[426469932,1782426643000,-1473.30168622,0.00027443,2]
[426469930,1782426643000,-574.22345492,0.00027443,2]
[426469949,1782426643000,-1400.53151413,0.00027701,2]
[426469939,1782426643000,-151.49213422,0.00027551,17]
[426469938,1782426643000,-10000.0,0.0002755,2]
[426469941,1782426643000,-750.11,0.00027608,2]
[426469944,1782426643000,-1033.17963766,0.00027701,2]
[426469943,1782426643000,-958.81286454,0.00027701,2]
[426469933,1782426643000,-151.49213422,0.00027462,16]
[426469940,1782426643000,-7310.79508902,0.00027556,2]
[426469945,1782426643000,-1590.45850955,0.00027701,2]
[426469942,1782426643000,-151.49213422,0.00027699,19]
[426469948,1782426643000,-1739.45467864,0.00027701,2]
[426469947,1782426643000,-1037.03560713,0.00027701,2]
[426469950,1782426643000,-1949.89951574,0.00027701,2]
[426469952,1782426643000,-1007.96506311,0.00027701,2]
[426469956,1782426643000,-987.19002539,0.00027708,2]
[426469954,1782426643000,-986.90084044,0.00027701,2]
[426469953,1782426643000,-936.84453279,0.00027701,2]
[426469955,1782426643000,-934.26762633,0.00027708,2]
[426469957,1782426643000,-1012.99219397,0.00027708,2]
[426469958,1782426643000,-574.22345492,0.00027717,2]
[426469896,1782426643000,-151.0,0.00027397,2]
[426469946,1782426643000,-977.12429046,0.00027701,2]
[426469926,1782426643000,-1969.96,0.000274,7]
[426469951,1782426643000,-1062.45074982,0.00027701,2]
[426469935,1782426643000,-635.0,0.000275,7]
[426469927,1782426643000,-300.0,0.000274,10]
[426469893,1782426643000,-151.0,0.00027397,2]
[426469898,1782426643000,-151.0,0.00027397,2]
[426469895,1782426643000,-151.0,0.00027397,2]
[426469904,1782426643000,-26232.37,0.00027397,10]
[426469906,1782426643000,-236.897163,0.00027397,2]
[426469903,1782426643000,-13756.31,0.00027397,10]
[426469912,1782426643000,-335.62595941,0.00027397,2]
[426469902,1782426643000,-1475.4,0.00027397,2]
[426469910,1782426643000,-320.58920084,0.00027397,2]
[426469907,1782426643000,-473.79432599,0.00027397,2]
[426469908,1782426643000,-710.69148899,0.00027397,2]
[426469911,1782426643000,-167.8129797,0.00027397,2]
[426469909,1782426643000,-160.87594378,0.00027397,2]
[426469901,1782426643000,-152.885403,0.00027397,2]
[426469924,1782426643000,-1000.0,0.000274,2]
[426469905,1782426643000,-976.316106,0.00027397,2]
[426469925,1782426643000,-1587.87,0.000274,2]
[426469922,1782426643000,-1000.0,0.000274,2]
[426469929,1782426643000,-500.0,0.00027443,2]
[426469923,1782426643000,-1000.0,0.000274,2]
[426469918,1782426643000,-151.49213422,0.000274,12]
[426469920,1782426643000,-1752.72,0.000274,2]
[426469921,1782426643000,-761.89,0.000274,7]
[426469919,1782426643000,-1000.0,0.000274,2]
[426469917,1782426643000,-482.62783133,0.00027397,2]
[426469915,1782426643000,-321.75188755,0.00027397,2]
[426469913,1782426643000,-503.43893911,0.00027397,2]
[426469916,1782426643000,-643.5037751,0.00027397,2]
[426469914,1782426643000,-671.25191881,0.00027397,2]
[426469983,1782426644000,-750.11,0.0002803,2]
[426469997,1782426644000,-666.0,0.00028304,10]
[426469996,1782426644000,-761.89,0.000283,7]
[426469991,1782426644000,-1000.0,0.000282,2]
[426470000,1782426644000,-109436.29427267,0.00028305,2]
[426469990,1782426644000,-316.0,0.000282,2]
[426469989,1782426644000,-150.0,0.00028174,2]
[426469985,1782426644000,-391.0,0.00028108,2]
[426469984,1782426644000,-1969.96,0.000281,7]
[426469992,1782426644000,-151.49213422,0.00028224,23]
[426469994,1782426644000,-574.22345492,0.00028265,2]
[426470002,1782426644000,-369.18358555,0.00027397,2]
[426469999,1782426644000,-666.0,0.00028304,10]
[426469995,1782426644000,-500.0,0.00028271,16]
[426469998,1782426644000,-244.33732715,0.00028304,10]
[426470001,1782426644000,-5799.89054218,0.00023548,2]
[426470004,1782426644000,-392.86747955,0.00028305,2]
[426470005,1782426644000,-2499.2819,0.00028305,2]
[426470003,1782426644000,-607.13252045,0.00027397,2]
[426470006,1782426644000,-367756.00229177,0.00028305,2]
[426469980,1782426644000,-500.0,0.00028,7]
[426470007,1782426644000,-3539.60438317,0.00028305,2]
[426469993,1782426644000,-750.11,0.0002824,2]
[426469986,1782426644000,-441.64524972,0.0002811,2]
[426469963,1782426644000,-750.11,0.00027819,2]
[426469981,1782426644000,-155.07,0.00028,7]
[426470008,1782426644000,-571.783607,0.00028305,7]
[426469962,1782426644000,-275.44,0.000278,7]
[426469961,1782426644000,-7310.79508902,0.00027778,2]
[426469959,1782426644000,-180.0,0.00027724,2]
[426469960,1782426644000,-1366.0,0.00027762,3]
[426469964,1782426644000,-170.03,0.00027865,3]
[426469968,1782426644000,-2921.37126179,0.000279,2]
[426469975,1782426644000,-574.22345492,0.00027991,2]
[426469966,1782426644000,-1300.0,0.000279,10]
[426469974,1782426644000,-518.5,0.00027991,2]
[426469965,1782426644000,-170.03,0.00027865,3]
[426469967,1782426644000,-2921.37126182,0.000279,2]
[426469972,1782426644000,-804.37971888,0.00027956,2]
[426469973,1782426644000,-839.06489851,0.00027956,2]
[426469970,1782426644000,-151.49213422,0.00027918,21]
[426469971,1782426644000,-503.19,0.00027939,2]
[426469969,1782426644000,-2921.37126179,0.000279,2]
[426469976,1782426644000,-500.0,0.00028,7]
[426469977,1782426644000,-500.0,0.00028,7]
[426469978,1782426644000,-500.0,0.00028,7]
[426469979,1782426644000,-500.0,0.00028,7]
[426469988,1782426644000,-2185.0,0.00028167,5]
[426469987,1782426644000,-2582.13076917,0.0002813,2]
[426469982,1782426644000,-7310.79508902,0.00028,2]
[426470009,1782426644000,-571.783607,0.00028305,7]
[426470017,1782426644000,-533.319612,0.00028305,7]
[426470015,1782426644000,-825.959217,0.00028305,7]
[426470041,1782426644000,-1962.0,0.00028344,5]
[426470043,1782426644000,-213.629073,0.00028353,2]
[426470039,1782426644000,-976.316106,0.00028305,7]
[426470040,1782426644000,-976.316106,0.00028305,7]
[426470042,1782426644000,-1564.0,0.00028344,5]
[426470045,1782426644000,-750.11,0.00028451,2]
[426470046,1782426644000,-2333.0,0.00028456,3]
[426470044,1782426644000,-254.0,0.00028437,5]
[426470048,1782426644000,-500.0,0.00028493,2]
[426470050,1782426644000,-500.0,0.00028493,2]
[426470038,1782426644000,-151.0,0.00028305,7]
[426470051,1782426644000,-500.0,0.00028493,2]
[426470047,1782426644000,-500.0,0.00028493,2]
[426470054,1782426644000,-500.0,0.00028493,2]
[426470053,1782426644000,-152.19371287,0.00028493,2]
[426470056,1782426644000,-500.0,0.00028493,2]
[426470059,1782426644000,-500.0,0.00028493,2]
[426470057,1782426644000,-500.0,0.00028493,2]
[426470055,1782426644000,-500.0,0.00028493,2]
[426470058,1782426644000,-500.0,0.00028493,2]
[426470060,1782426644000,-500.0,0.00028493,2]
[426470061,1782426644000,-500.0,0.00028493,2]
[426470052,1782426644000,-619.84660301,0.00028493,2]
[426470037,1782426644000,-151.0,0.00028305,7]
[426470049,1782426644000,-500.0,0.00028493,2]
[426470035,1782426644000,-151.0,0.00028305,7]
[426470036,1782426644000,-151.0,0.00028305,7]
[426470018,1782426644000,-533.319612,0.00028305,7]
[426470010,1782426644000,-571.783607,0.00028305,7]
[426470019,1782426644000,-533.319612,0.00028305,7]
[426470013,1782426644000,-825.959217,0.00028305,7]
[426470014,1782426644000,-825.959217,0.00028305,7]
[426470011,1782426644000,-571.783607,0.00028305,7]
[426470012,1782426644000,-825.959217,0.00028305,7]
[426470020,1782426644000,-151.0,0.00028305,7]
[426470031,1782426644000,-693.181969,0.00028305,7]
[426470028,1782426644000,-151.0,0.00028305,7]
[426470016,1782426644000,-533.319612,0.00028305,7]
[426470022,1782426644000,-151.0,0.00028305,7]
[426470034,1782426644000,-151.0,0.00028305,7]
[426470026,1782426644000,-151.0,0.00028305,7]
[426470033,1782426644000,-693.181969,0.00028305,7]
[426470030,1782426644000,-693.181969,0.00028305,7]
[426470024,1782426644000,-288.557856,0.00028305,7]
[426470027,1782426644000,-151.0,0.00028305,7]
[426470032,1782426644000,-693.181969,0.00028305,7]
[426470029,1782426644000,-151.0,0.00028305,7]
[426470025,1782426644000,-151.0,0.00028305,7]
[426470023,1782426644000,-151.0,0.00028305,7]
[426470021,1782426644000,-151.0,0.00028305,7]
[426470102,1782426645000,-500.0,0.00028493,2]
[426470100,1782426645000,-958.0,0.00028493,2]
[426470106,1782426645000,-500.0,0.00028493,2]
[426470095,1782426645000,-958.0,0.00028493,2]
[426470101,1782426645000,-446.0,0.00028493,2]
[426470096,1782426645000,-500.0,0.00028493,2]
[426470104,1782426645000,-958.0,0.00028493,2]
[426470099,1782426645000,-446.0,0.00028493,2]
[426470098,1782426645000,-500.0,0.00028493,2]
[426470097,1782426645000,-446.0,0.00028493,2]
[426470108,1782426645000,-446.0,0.00028493,2]
[426470094,1782426645000,-446.0,0.00028493,2]
[426470103,1782426645000,-500.0,0.00028493,2]
[426470107,1782426645000,-500.0,0.00028493,2]
[426470128,1782426645000,-958.0,0.00028493,2]
[426470109,1782426645000,-958.0,0.00028493,2]
[426470113,1782426645000,-958.0,0.00028493,2]
[426470112,1782426645000,-958.0,0.00028493,2]
[426470111,1782426645000,-500.0,0.00028493,2]
[426470116,1782426645000,-500.0,0.00028493,2]
[426470114,1782426645000,-500.0,0.00028493,2]
[426470117,1782426645000,-958.0,0.00028493,2]
[426470110,1782426645000,-500.0,0.00028493,2]
[426470115,1782426645000,-446.0,0.00028493,2]
[426470119,1782426645000,-500.0,0.00028493,2]
[426470129,1782426645000,-500.0,0.00028493,2]
[426470127,1782426645000,-500.0,0.00028493,2]
[426470092,1782426645000,-958.0,0.00028493,2]
[426470105,1782426645000,-446.0,0.00028493,2]
[426470093,1782426645000,-500.0,0.00028493,2]
[426470068,1782426645000,-958.0,0.00028493,2]
[426470090,1782426645000,-500.0,0.00028493,2]
[426470062,1782426645000,-500.0,0.00028493,2]
[426470064,1782426645000,-446.0,0.00028493,2]
[426470066,1782426645000,-500.0,0.00028493,2]
[426470065,1782426645000,-644.59969864,0.00028493,2]
[426470063,1782426645000,-500.0,0.00028493,2]
[426470126,1782426645000,-500.0,0.00028493,2]
[426470078,1782426645000,-500.0,0.00028493,2]
[426470072,1782426645000,-500.0,0.00028493,2]
[426470067,1782426645000,-446.0,0.00028493,2]
[426470079,1782426645000,-446.0,0.00028493,2]
[426470069,1782426645000,-500.0,0.00028493,2]
[426470070,1782426645000,-446.0,0.00028493,2]
[426470074,1782426645000,-958.0,0.00028493,2]
[426470087,1782426645000,-500.0,0.00028493,2]
[426470071,1782426645000,-958.0,0.00028493,2]
[426470076,1782426645000,-446.0,0.00028493,2]
[426470077,1782426645000,-958.0,0.00028493,2]
[426470073,1782426645000,-446.0,0.00028493,2]
[426470080,1782426645000,-958.0,0.00028493,2]
[426470085,1782426645000,-500.0,0.00028493,2]
[426470083,1782426645000,-958.0,0.00028493,2]
[426470089,1782426645000,-958.0,0.00028493,2]
[426470086,1782426645000,-958.0,0.00028493,2]
[426470084,1782426645000,-446.0,0.00028493,2]
[426470091,1782426645000,-446.0,0.00028493,2]
[426470082,1782426645000,-500.0,0.00028493,2]
[426470081,1782426645000,-446.0,0.00028493,2]
[426470088,1782426645000,-446.0,0.00028493,2]
[426470075,1782426645000,-500.0,0.00028493,2]
[426470131,1782426645000,-615.02804069,0.00028493,2]
[426470177,1782426645000,-500.0,0.00028493,2]
[426470118,1782426645000,-500.0,0.00028493,2]
[426470166,1782426645000,-446.0,0.00028493,2]
[426470164,1782426645000,-446.0,0.00028493,2]
[426470163,1782426645000,-958.0,0.00028493,2]
[426470167,1782426645000,-958.0,0.00028493,2]
[426470171,1782426645000,-500.0,0.00028493,2]
[426470168,1782426645000,-455.56125815,0.00028493,2]
[426470173,1782426645000,-500.0,0.00028493,2]
[426470170,1782426645000,-500.0,0.00028493,2]
[426470169,1782426645000,-960.24418351,0.00028493,2]
[426470172,1782426645000,-500.0,0.00028493,2]
[426470175,1782426645000,-500.0,0.00028493,2]
[426470174,1782426645000,-150.0,0.00028493,2]
[426470176,1782426645000,-500.0,0.00028493,2]
[426470165,1782426645000,-958.0,0.00028493,2]
[426470184,1782426645000,-500.0,0.00028493,2]
[426470181,1782426645000,-500.0,0.00028493,2]
[426470178,1782426645000,-500.0,0.00028493,2]
[426470180,1782426645000,-500.0,0.00028493,2]
[426470183,1782426645000,-500.0,0.00028493,2]
[426470182,1782426645000,-500.0,0.00028493,2]
[426470188,1782426645000,-500.0,0.00028493,2]
[426470186,1782426645000,-500.0,0.00028493,2]
[426470191,1782426645000,-500.0,0.00028493,2]
[426470192,1782426645000,-500.0,0.00028493,2]
[426470189,1782426645000,-500.0,0.00028493,2]
[426470190,1782426645000,-500.0,0.00028493,2]
[426470130,1782426645000,-150.0,0.00028493,2]
[426470187,1782426645000,-615.33907775,0.00028493,2]
[426470179,1782426645000,-500.0,0.00028493,2]
[426470153,1782426645000,-500.0,0.00028493,2]
[426470185,1782426645000,-500.0,0.00028493,2]
[426470154,1782426645000,-500.0,0.00028493,2]
[426470120,1782426645000,-500.0,0.00028493,2]
[426470157,1782426645000,-500.0,0.00028493,2]
[426470123,1782426645000,-500.0,0.00028493,2]
[426470122,1782426645000,-500.0,0.00028493,2]
[426470125,1782426645000,-500.0,0.00028493,2]
[426470124,1782426645000,-446.0,0.00028493,2]
[426470135,1782426645000,-446.0,0.00028493,2]
[426470132,1782426645000,-500.0,0.00028493,2]
[426470138,1782426645000,-500.0,0.00028493,2]
[426470137,1782426645000,-500.0,0.00028493,2]
[426470140,1782426645000,-500.0,0.00028493,2]
[426470133,1782426645000,-500.0,0.00028493,2]
[426470146,1782426645000,-500.0,0.00028493,2]
[426470143,1782426645000,-958.0,0.00028493,2]
[426470134,1782426645000,-500.0,0.00028493,2]
[426470121,1782426645000,-958.0,0.00028493,2]
[426470152,1782426645000,-446.0,0.00028493,2]
[426470145,1782426645000,-500.0,0.00028493,2]
[426470162,1782426645000,-446.0,0.00028493,2]
[426470149,1782426645000,-500.0,0.00028493,2]
[426470150,1782426645000,-406.98018119,0.00028493,2]
[426470147,1782426645000,-500.0,0.00028493,2]
[426470160,1782426645000,-958.0,0.00028493,2]
[426470151,1782426645000,-500.0,0.00028493,2]
[426470158,1782426645000,-503.11177321,0.00028493,2]
[426470148,1782426645000,-500.0,0.00028493,2]
[426470161,1782426645000,-587.58954103,0.00028493,2]
[426470136,1782426645000,-500.0,0.00028493,2]
[426470144,1782426645000,-500.0,0.00028493,2]
[426470155,1782426645000,-500.0,0.00028493,2]
[426470231,1782426646000,-500.0,0.00028493,2]
[426470233,1782426646000,-500.0,0.00028493,2]
[426470230,1782426646000,-150.0,0.00028493,2]
[426470234,1782426646000,-500.0,0.00028493,2]
[426470229,1782426646000,-150.0,0.00028493,2]
[426470235,1782426646000,-500.0,0.00028493,2]
[426470227,1782426646000,-515.0179115,0.00028493,2]
[426470228,1782426646000,-264.53919535,0.00028493,2]
[426470236,1782426646000,-500.0,0.00028493,2]
[426470224,1782426646000,-500.0,0.00028493,2]
[426470232,1782426646000,-188.64253889,0.00028493,2]
[426470225,1782426646000,-500.0,0.00028493,2]
[426470226,1782426646000,-500.0,0.00028493,2]
[426470237,1782426646000,-496.23414018,0.00028493,2]
[426470243,1782426646000,-500.0,0.00028493,2]
[426470241,1782426646000,-606.10651734,0.00028493,2]
[426470240,1782426646000,-500.0,0.00028493,2]
[426470245,1782426646000,-500.0,0.00028493,2]
[426470244,1782426646000,-500.0,0.00028493,2]
[426470247,1782426646000,-500.0,0.00028493,2]
[426470238,1782426646000,-500.0,0.00028493,2]
[426470242,1782426646000,-500.0,0.00028493,2]
[426470248,1782426646000,-500.0,0.00028493,2]
[426470249,1782426646000,-500.0,0.00028493,2]
[426470246,1782426646000,-500.0,0.00028493,2]
[426470251,1782426646000,-500.0,0.00028493,2]
[426470262,1782426646000,-254.48877466,0.00028493,2]
[426470261,1782426646000,-500.0,0.00028493,2]
[426470239,1782426646000,-432.84396056,0.00028493,2]
[426470215,1782426646000,-173.74778307,0.00028493,2]
[426470194,1782426646000,-500.0,0.00028493,2]
[426470216,1782426646000,-500.0,0.00028493,2]
[426470252,1782426646000,-500.0,0.00028493,2]
[426470196,1782426646000,-500.0,0.00028493,2]
[426470195,1782426646000,-500.0,0.00028493,2]
[426470197,1782426646000,-500.0,0.00028493,2]
[426470193,1782426646000,-500.0,0.00028493,2]
[426470198,1782426646000,-500.0,0.00028493,2]
[426470200,1782426646000,-500.0,0.00028493,2]
[426470210,1782426646000,-500.0,0.00028493,2]
[426470199,1782426646000,-500.0,0.00028493,2]
[426470201,1782426646000,-500.0,0.00028493,2]
[426470202,1782426646000,-500.0,0.00028493,2]
[426470207,1782426646000,-500.0,0.00028493,2]
[426470204,1782426646000,-150.0,0.00028493,2]
[426470217,1782426646000,-150.0,0.00028493,2]
[426470203,1782426646000,-150.0,0.00028493,2]
[426470209,1782426646000,-150.0,0.00028493,2]
[426470206,1782426646000,-500.0,0.00028493,2]
[426470208,1782426646000,-150.0,0.00028493,2]
[426470214,1782426646000,-150.0,0.00028493,2]
[426470212,1782426646000,-150.0,0.00028493,2]
[426470211,1782426646000,-150.0,0.00028493,2]
[426470223,1782426646000,-153.05995072,0.00028493,2]
[426470221,1782426646000,-150.0,0.00028493,2]
[426470220,1782426646000,-500.0,0.00028493,2]
[426470213,1782426646000,-500.0,0.00028493,2]
[426470218,1782426646000,-500.0,0.00028493,2]
[426470222,1782426646000,-500.0,0.00028493,2]
[426470219,1782426646000,-150.0,0.00028493,2]
[426470205,1782426646000,-500.0,0.00028493,2]
[426470258,1782426646000,-500.0,0.00028493,2]
[426470307,1782426646000,-654.0,0.00028493,2]
[426470255,1782426646000,-566.73223707,0.00028493,2]
[426470289,1782426646000,-500.0,0.00028493,2]
[426470293,1782426646000,-500.0,0.00028493,2]
[426470291,1782426646000,-500.0,0.00028493,2]
[426470292,1782426646000,-500.0,0.00028493,2]
[426470290,1782426646000,-500.0,0.00028493,2]
[426470300,1782426646000,-654.0,0.00028493,2]
[426470298,1782426646000,-638.54236203,0.00028493,2]
[426470294,1782426646000,-500.0,0.00028493,2]
[426470299,1782426646000,-150.0,0.00028493,2]
[426470295,1782426646000,-500.0,0.00028493,2]
[426470296,1782426646000,-500.0,0.00028493,2]
[426470297,1782426646000,-500.0,0.00028493,2]
[426470302,1782426646000,-654.0,0.00028493,2]
[426470286,1782426646000,-500.0,0.00028493,2]
[426470313,1782426646000,-654.0,0.00028493,2]
[426470301,1782426646000,-654.0,0.00028493,2]
[426470305,1782426646000,-500.0,0.00028493,2]
[426470304,1782426646000,-654.0,0.00028493,2]
[426470303,1782426646000,-500.0,0.00028493,2]
[426470309,1782426646000,-654.0,0.00028493,2]
[426470311,1782426646000,-654.0,0.00028493,2]
[426470310,1782426646000,-500.0,0.00028493,2]
[426470308,1782426646000,-500.0,0.00028493,2]
[426470306,1782426646000,-500.0,0.00028493,2]
[426470314,1782426646000,-654.0,0.00028493,2]
[426470316,1782426646000,-654.0,0.00028493,2]
[426470317,1782426646000,-654.0,0.00028493,2]
[426470315,1782426646000,-654.0,0.00028493,2]
[426470312,1782426646000,-201.61434256,0.00028493,2]
[426470285,1782426646000,-500.0,0.00028493,2]
[426470318,1782426646000,-654.0,0.00028493,2]
[426470284,1782426646000,-150.0,0.00028493,2]
[426470287,1782426646000,-501.65353648,0.00028493,2]
[426470250,1782426646000,-500.0,0.00028493,2]
[426470260,1782426646000,-500.0,0.00028493,2]
[426470256,1782426646000,-500.0,0.00028493,2]
[426470254,1782426646000,-500.0,0.00028493,2]
[426470257,1782426646000,-500.0,0.00028493,2]
[426470259,1782426646000,-500.0,0.00028493,2]
[426470263,1782426646000,-500.0,0.00028493,2]
[426470267,1782426646000,-500.0,0.00028493,2]
[426470268,1782426646000,-500.0,0.00028493,2]
[426470266,1782426646000,-500.0,0.00028493,2]
[426470265,1782426646000,-596.00656403,0.00028493,2]
[426470274,1782426646000,-500.0,0.00028493,2]
[426470272,1782426646000,-500.0,0.00028493,2]
[426470253,1782426646000,-500.0,0.00028493,2]
[426470273,1782426646000,-500.0,0.00028493,2]
[426470271,1782426646000,-500.0,0.00028493,2]
[426470279,1782426646000,-500.0,0.00028493,2]
[426470280,1782426646000,-500.0,0.00028493,2]
[426470281,1782426646000,-500.0,0.00028493,2]
[426470283,1782426646000,-500.0,0.00028493,2]
[426470277,1782426646000,-500.0,0.00028493,2]
[426470282,1782426646000,-500.0,0.00028493,2]
[426470278,1782426646000,-500.0,0.00028493,2]
[426470275,1782426646000,-500.0,0.00028493,2]
[426470276,1782426646000,-500.0,0.00028493,2]
[426470270,1782426646000,-500.0,0.00028493,2]
[426470269,1782426646000,-500.0,0.00028493,2]
[426470264,1782426646000,-500.0,0.00028493,2]
[426470288,1782426646000,-506.92104391,0.00028493,2]
[426470356,1782426647000,-9999.5036962,0.0002871,2]
[426470359,1782426647000,-416.66667,0.0002871,2]
[426470357,1782426647000,-416.66666,0.0002871,2]
[426470355,1782426647000,-452.88633865,0.00028702,2]
[426470354,1782426647000,-750.11,0.00028662,2]
[426470348,1782426647000,-765.0,0.00028635,30]
[426470363,1782426647000,-172.28221701,0.00028755,3]
[426470364,1782426647000,-151.0,0.00028755,3]
[426470352,1782426647000,-580.03871555,0.00028658,2]
[426470353,1782426647000,-290.01935778,0.00028658,2]
[426470358,1782426647000,-416.66667,0.0002871,2]
[426470360,1782426647000,-151.0,0.00028755,3]
[426470367,1782426647000,-151.0,0.00028755,3]
[426470361,1782426647000,-151.0,0.00028755,3]
[426470365,1782426647000,-153.90461545,0.00028755,3]
[426470369,1782426647000,-200.0,0.00028757,2]
[426470366,1782426647000,-151.0,0.00028755,3]
[426470370,1782426647000,-200.0,0.00028767,2]
[426470347,1782426647000,-260.0,0.00028635,30]
[426470371,1782426647000,-965.25566266,0.00028795,2]
[426470368,1782426647000,-166.0,0.00028755,3]
[426470374,1782426647000,-700.0,0.00028826,2]
[426470372,1782426647000,-1969.96,0.000288,7]
[426470375,1782426647000,-170.0,0.00028838,2]
[426470373,1782426647000,-574.22345492,0.00028813,2]
[426470376,1782426647000,-269.83,0.00028863,7]
[426470377,1782426647000,-750.11,0.00028872,2]
[426470362,1782426647000,-151.0,0.00028755,3]
[426470349,1782426647000,-349.98365325,0.00028658,2]
[426470339,1782426647000,-612.0,0.00028631,30]
[426470343,1782426647000,-370.0,0.00028631,30]
[426470378,1782426647000,-193.56353703,0.00028909,2]
[426470320,1782426647000,-654.0,0.00028493,2]
[426470324,1782426647000,-654.0,0.00028493,2]
[426470321,1782426647000,-654.0,0.00028493,2]
[426470322,1782426647000,-654.0,0.00028493,2]
[426470319,1782426647000,-654.0,0.00028493,2]
[426470325,1782426647000,-654.0,0.00028493,2]
[426470323,1782426647000,-654.0,0.00028493,2]
[426470327,1782426647000,-654.0,0.00028493,2]
[426470335,1782426647000,-187.15002694,0.00028631,30]
[426470337,1782426647000,-260.0,0.00028631,30]
[426470326,1782426647000,-654.0,0.00028493,2]
[426470329,1782426647000,-658.3631274,0.00028493,2]
[426470336,1782426647000,-385.0,0.00028631,30]
[426470330,1782426647000,-156.03461957,0.0002851,3]
[426470328,1782426647000,-654.0,0.00028493,2]
[426470333,1782426647000,-503.19,0.00028589,2]
[426470334,1782426647000,-275.44,0.000286,7]
[426470331,1782426647000,-537.6845,0.00028539,2]
[426470338,1782426647000,-151.49213422,0.00028631,25]
[426470341,1782426647000,-312.0,0.00028631,30]
[426470345,1782426647000,-551.0,0.00028635,30]
[426470340,1782426647000,-256.0,0.00028631,30]
[426470346,1782426647000,-615.0,0.00028635,30]
[426470342,1782426647000,-1226.0,0.00028631,30]
[426470344,1782426647000,-154.0,0.00028631,30]
[426470351,1782426647000,-1000.0,0.00028658,2]
[426470350,1782426647000,-174.99182662,0.00028658,2]
[426470332,1782426647000,-574.22345492,0.00028539,2]
[426470379,1782426647000,-341.5156125,0.00028952,2]
[426470380,1782426647000,-1118.61500863,0.00028958,2]
[426470413,1782426647000,-500.0,0.00029,2]
[426470422,1782426647000,-500.0,0.00029,2]
[426470414,1782426647000,-500.0,0.00029,2]
[426470421,1782426647000,-500.0,0.00029,2]
[426470415,1782426647000,-500.0,0.00029,2]
[426470417,1782426647000,-500.0,0.00029,2]
[426470418,1782426647000,-500.0,0.00029,2]
[426470416,1782426647000,-500.0,0.00029,2]
[426470420,1782426647000,-500.0,0.00029,2]
[426470419,1782426647000,-500.0,0.00029,2]
[426470424,1782426647000,-500.0,0.00029,2]
[426470435,1782426647000,-500.0,0.00029,2]
[426470423,1782426647000,-500.0,0.00029,2]
[426470427,1782426647000,-500.0,0.00029,2]
[426470426,1782426647000,-500.0,0.00029,2]
[426470425,1782426647000,-500.0,0.00029,2]